[Event "Titled Tuesday Blitz June 28 Early 2022"]
[White "Skliarov, Viktor"]
[Black "Bharath Subramaniyam H"]
[WhiteFideId "14106736"]
[BlackFideId "46634827"]
[WhiteElo "2229"]
[BlackElo "2242"]
[Result "0-1"]
[Round "11"]
[TimeControl "180+1"]
[Date "2022.06.28"]
[WhiteClock "0:00:02"]
[BlackClock "0:01:52"]

1. e4 {[%clk 0:02:56]}  c5 {[%clk 0:02:59]} 2. Nf3 {[%clk 0:02:56]}  e6 {[%clk 0:03:00]} 3. c3 {[%clk 0:02:56]}  Nf6 {[%clk 0:02:59]} 4. Bd3 {[%clk 0:02:55]}  Nc6 {[%clk 0:02:57]} 5. Bc2 {[%clk 0:02:55]}  d5 {[%clk 0:02:56]} 6. e5 {[%clk 0:02:55]}  Nd7 {[%clk 0:02:55]} 7. d4 {[%clk 0:02:55]}  cxd4 {[%clk 0:02:56]} 8. cxd4 {[%clk 0:02:55]}  Nb4 {[%clk 0:02:57]} 9. Ba4 {[%clk 0:02:49]}  Be7 {[%clk 0:02:47]} 10. O-O {[%clk 0:02:48]}  O-O {[%clk 0:02:46]} 11. Nc3 {[%clk 0:02:44]}  a6 {[%clk 0:02:45]} 12. a3 {[%clk 0:02:44]}  Nc6 {[%clk 0:02:45]} 13. Bc2 {[%clk 0:02:40]}  b5 {[%clk 0:02:41]} 14. Qd3 {[%clk 0:02:37]}  g6 {[%clk 0:02:41]} 15. Bh6 {[%clk 0:02:36]}  Re8 {[%clk 0:02:41]} 16. g3 {[%clk 0:02:29]}  b4 {[%clk 0:02:36]} 17. Ne2 {[%clk 0:02:28]}  a5 {[%clk 0:02:32]} 18. h4 {[%clk 0:02:22]}  Ba6 {[%clk 0:02:28]} 19. Qe3 {[%clk 0:02:22]}  Qb6 {[%clk 0:02:25]} 20. Nf4 {[%clk 0:02:02]}  Bxf1 {[%clk 0:02:19]} 21. Rxf1 {[%clk 0:02:01]}  bxa3 {[%clk 0:02:17]} 22. bxa3 {[%clk 0:01:26]}  Qb2 {[%clk 0:02:15]} 23. Bd3 {[%clk 0:01:11]}  Qxa3 {[%clk 0:02:12]} 24. h5 {[%clk 0:01:00]}  Nb4 {[%clk 0:02:12]} 25. Ng5 {[%clk 0:00:48]}  Nxd3 {[%clk 0:02:09]} 26. Nxd3 {[%clk 0:00:30]}  Rac8 {[%clk 0:02:01]} 27. hxg6 {[%clk 0:00:09]}  hxg6 {[%clk 0:02:02]} 28. Nxf7 {[%clk 0:00:09]}  Kxf7 {[%clk 0:01:58]} 29. Qf3+ {[%clk 0:00:02]}  Kg8 {[%clk 0:01:57]} 30. Re1 {[%clk 0:00:02]}  Bf8 {[%clk 0:01:53]} 31. Re3 {[%clk 0:00:02]}  Bxh6 {[%clk 0:01:52]} 0-1


[Site "https://www.chess.com"]

[Event "Titled Tuesday Blitz June 28 Early 2022"]
[White "So, Wesley"]
[Black "Terry, Renato"]
[WhiteFideId "5202213"]
[BlackFideId "3803457"]
[WhiteElo "2742"]
[BlackElo "2577"]
[Result "1-0"]
[Round "11"]
[TimeControl "180+1"]
[Date "2022.06.28"]
[WhiteClock "0:00:15"]
[BlackClock "0:00:04"]

1. e4 {[%clk 0:03:00]}  g6 {[%clk 0:02:59]} 2. d4 {[%clk 0:03:00]}  Bg7 {[%clk 0:03:00]} 3. Nc3 {[%clk 0:03:00]}  c6 {[%clk 0:03:00]} 4. Be3 {[%clk 0:02:57]}  d5 {[%clk 0:03:00]} 5. Qd2 {[%clk 0:02:53]}  b5 {[%clk 0:02:44]} 6. a3 {[%clk 0:02:45]}  a6 {[%clk 0:02:38]} 7. e5 {[%clk 0:02:29]}  f6 {[%clk 0:02:37]} 8. Nf3 {[%clk 0:02:25]}  Bg4 {[%clk 0:02:37]} 9. exf6 {[%clk 0:02:24]}  exf6 {[%clk 0:02:36]} 10. Be2 {[%clk 0:02:24]}  Ne7 {[%clk 0:02:34]} 11. O-O {[%clk 0:02:22]}  O-O {[%clk 0:02:31]} 12. h3 {[%clk 0:02:19]}  Be6 {[%clk 0:02:25]} 13. Rfe1 {[%clk 0:02:13]}  Re8 {[%clk 0:02:24]} 14. Bd3 {[%clk 0:02:11]}  Nd7 {[%clk 0:02:21]} 15. a4 {[%clk 0:02:08]}  Bf7 {[%clk 0:01:56]} 16. Bf4 {[%clk 0:01:58]}  Nb6 {[%clk 0:01:43]} 17. axb5 {[%clk 0:01:55]}  axb5 {[%clk 0:01:42]} 18. Rxa8 {[%clk 0:01:54]}  Qxa8 {[%clk 0:01:43]} 19. h4 {[%clk 0:01:42]}  Nc4 {[%clk 0:01:37]} 20. Qc1 {[%clk 0:01:40]}  Qa5 {[%clk 0:01:35]} 21. h5 {[%clk 0:01:35]}  gxh5 {[%clk 0:01:24]} 22. Nh4 {[%clk 0:01:32]}  Ng6 {[%clk 0:01:04]} 23. Rxe8+ {[%clk 0:01:32]}  Bxe8 {[%clk 0:01:04]} 24. Nf5 {[%clk 0:01:32]}  Nxb2 {[%clk 0:00:44]} 25. Bd2 {[%clk 0:01:11]}  Nxd3 {[%clk 0:00:36]} 26. cxd3 {[%clk 0:01:12]}  Qb6 {[%clk 0:00:36]} 27. Bh6 {[%clk 0:01:04]}  Bxh6 {[%clk 0:00:28]} 28. Nxh6+ {[%clk 0:01:03]}  Kf8 {[%clk 0:00:27]} 29. Nf5 {[%clk 0:01:04]}  Qc7 {[%clk 0:00:27]} 30. Nxb5 {[%clk 0:01:01]}  Qf4 {[%clk 0:00:23]} 31. Qa3+ {[%clk 0:00:59]}  Kg8 {[%clk 0:00:22]} 32. Nbd6 {[%clk 0:01:00]}  Bd7 {[%clk 0:00:16]} 33. g3 {[%clk 0:00:59]}  Qf3 {[%clk 0:00:12]} 34. Qa7 {[%clk 0:00:27]}  Nf8 {[%clk 0:00:12]} 35. Qc7 {[%clk 0:00:18]}  h4 {[%clk 0:00:06]} 36. Nxh4 {[%clk 0:00:17]}  Qd1+ {[%clk 0:00:06]} 37. Kg2 {[%clk 0:00:18]}  Qxd3 {[%clk 0:00:07]} 38. Qd8 {[%clk 0:00:15]}  Qxd4 {[%clk 0:00:06]} 39. Qe7 {[%clk 0:00:16]}  Be6 {[%clk 0:00:05]} 40. Ne8 {[%clk 0:00:16]}  f5 {[%clk 0:00:04]} 41. Nf6+ {[%clk 0:00:15]}  Qxf6 {[%clk 0:00:02]} 42. Qxf6 {[%clk 0:00:16]}  f4 {[%clk 0:00:02]} 43. Qxf4 {[%clk 0:00:16]}  Bf7 {[%clk 0:00:02]} 44. Nf5 {[%clk 0:00:16]}  Ne6 {[%clk 0:00:02]} 45. Qb8+ {[%clk 0:00:15]}  Nf8 {[%clk 0:00:02]} 46. Qe5 {[%clk 0:00:15]}  Ne6 {[%clk 0:00:02]} 47. Nh6+ {[%clk 0:00:15]}  Kf8 {[%clk 0:00:02]} 48. Qf6 {[%clk 0:00:16]}  Nd8 {[%clk 0:00:02]} 49. Qxd8+ {[%clk 0:00:16]}  Kg7 {[%clk 0:00:02]} 50. Nf5+ {[%clk 0:00:16]}  Kg6 {[%clk 0:00:02]} 51. Ne7+ {[%clk 0:00:15]}  Kg7 {[%clk 0:00:03]} 52. Nxc6 {[%clk 0:00:15]}  Bg6 {[%clk 0:00:03]} 53. Qxd5 {[%clk 0:00:15]}  Be4+ {[%clk 0:00:04]} 54. Qxe4 {[%clk 0:00:15]} 1-0


[Site "https://www.chess.com"]

[Event "Titled Tuesday Blitz June 28 Early 2022"]
[White "Starozhilov, Leonid"]
[Black "Madaminov, Mukhiddin"]
[WhiteFideId "14106752"]
[BlackFideId "14210703"]
[WhiteElo "2414"]
[BlackElo "1916"]
[Result "0-1"]
[Round "11"]
[TimeControl "180+1"]
[Date "2022.06.28"]
[WhiteClock "0:00:02"]
[BlackClock "0:01:43"]

1. e4 {[%clk 0:02:53]}  e5 {[%clk 0:02:59]} 2. Nf3 {[%clk 0:02:53]}  Nc6 {[%clk 0:03:00]} 3. Bb5 {[%clk 0:02:52]}  Nf6 {[%clk 0:02:59]} 4. d3 {[%clk 0:02:52]}  Bc5 {[%clk 0:02:53]} 5. Nc3 {[%clk 0:02:50]}  d6 {[%clk 0:02:51]} 6. Be3 {[%clk 0:02:44]}  Bb6 {[%clk 0:02:51]} 7. h3 {[%clk 0:02:43]}  O-O {[%clk 0:02:50]} 8. O-O {[%clk 0:02:41]}  Ne7 {[%clk 0:02:50]} 9. d4 {[%clk 0:02:34]}  Ng6 {[%clk 0:02:44]} 10. dxe5 {[%clk 0:02:28]}  dxe5 {[%clk 0:02:45]} 11. Qxd8 {[%clk 0:02:28]}  Rxd8 {[%clk 0:02:44]} 12. Rad1 {[%clk 0:02:28]}  Be6 {[%clk 0:02:41]} 13. Ng5 {[%clk 0:02:23]}  Bxe3 {[%clk 0:02:40]} 14. fxe3 {[%clk 0:02:22]}  c6 {[%clk 0:02:38]} 15. Ba4 {[%clk 0:02:16]}  Bc4 {[%clk 0:02:36]} 16. Rfe1 {[%clk 0:02:11]}  h6 {[%clk 0:02:36]} 17. Nf3 {[%clk 0:02:10]}  Kf8 {[%clk 0:02:36]} 18. Bb3 {[%clk 0:02:09]}  Bxb3 {[%clk 0:02:36]} 19. axb3 {[%clk 0:02:10]}  Ke7 {[%clk 0:02:37]} 20. Kf2 {[%clk 0:02:10]}  Ne8 {[%clk 0:02:34]} 21. Rxd8 {[%clk 0:02:01]}  Rxd8 {[%clk 0:02:34]} 22. Rd1 {[%clk 0:02:00]}  Rxd1 {[%clk 0:02:33]} 23. Nxd1 {[%clk 0:02:01]}  h5 {[%clk 0:02:34]} 24. Nd2 {[%clk 0:01:57]}  Nd6 {[%clk 0:02:34]} 25. Nc3 {[%clk 0:01:55]}  f6 {[%clk 0:02:34]} 26. b4 {[%clk 0:01:45]}  Nf8 {[%clk 0:02:33]} 27. Ke2 {[%clk 0:01:37]}  Ne6 {[%clk 0:02:33]} 28. Kd3 {[%clk 0:01:37]}  g6 {[%clk 0:02:30]} 29. Nc4 {[%clk 0:01:34]}  Nxc4 {[%clk 0:02:28]} 30. Kxc4 {[%clk 0:01:35]}  h4 {[%clk 0:02:27]} 31. b5 {[%clk 0:01:32]}  Kd6 {[%clk 0:02:27]} 32. bxc6 {[%clk 0:01:31]}  bxc6 {[%clk 0:02:28]} 33. b4 {[%clk 0:01:30]}  f5 {[%clk 0:02:26]} 34. exf5 {[%clk 0:01:22]}  gxf5 {[%clk 0:02:27]} 35. Ne2 {[%clk 0:01:14]}  Nc7 {[%clk 0:02:26]} 36. g3 {[%clk 0:01:11]}  Nd5 {[%clk 0:02:25]} 37. e4 {[%clk 0:00:54]}  fxe4 {[%clk 0:02:07]} 38. gxh4 {[%clk 0:00:52]}  Ne3+ {[%clk 0:02:06]} 39. Kc3 {[%clk 0:00:49]}  Nf5 {[%clk 0:02:06]} 40. h5 {[%clk 0:00:47]}  Kd5 {[%clk 0:02:07]} 41. Ng3 {[%clk 0:00:23]}  Nxg3 {[%clk 0:02:06]} 42. h6 {[%clk 0:00:23]}  Ne2+ {[%clk 0:02:07]} 43. Kd2 {[%clk 0:00:22]}  Nf4 {[%clk 0:02:07]} 44. h7 {[%clk 0:00:21]}  Ng6 {[%clk 0:02:08]} 45. Ke3 {[%clk 0:00:16]}  Nh8 {[%clk 0:02:08]} 46. h4 {[%clk 0:00:16]}  Nf7 {[%clk 0:02:07]} 47. h5 {[%clk 0:00:14]}  Nh8 {[%clk 0:02:08]} 48. h6 {[%clk 0:00:04]}  Nf7 {[%clk 0:01:41]} 49. c4+ {[%clk 0:00:03]}  Ke6 {[%clk 0:01:41]} 50. Kxe4 {[%clk 0:00:03]}  Ng5+ {[%clk 0:01:41]} 51. Ke3 {[%clk 0:00:03]}  Nxh7 {[%clk 0:01:42]} 52. b5 {[%clk 0:00:02]}  cxb5 {[%clk 0:01:43]} 53. cxb5 {[%clk 0:00:03]}  Nf6 {[%clk 0:01:44]} 54. Kd3 {[%clk 0:00:02]}  Kd5 {[%clk 0:01:44]} 55. Ke3 {[%clk 0:00:02]}  Ng4+ {[%clk 0:01:43]} 0-1


[Site "https://www.chess.com"]

[Event "Titled Tuesday Blitz June 28 Early 2022"]
[White "Terrieux, Kevin"]
[Black "Molina, Roberto Junio Brito"]
[WhiteFideId "622591"]
[BlackFideId "2109450"]
[WhiteElo "2482"]
[BlackElo "2432"]
[Result "1-0"]
[Round "11"]
[TimeControl "180+1"]
[Date "2022.06.28"]
[WhiteClock "0:00:21"]
[BlackClock "0:00:53"]

1. d4 {[%clk 0:03:00]}  d5 {[%clk 0:02:58]} 2. e4 {[%clk 0:02:59]}  dxe4 {[%clk 0:02:57]} 3. Nc3 {[%clk 0:02:59]}  Nf6 {[%clk 0:02:57]} 4. f3 {[%clk 0:02:59]}  exf3 {[%clk 0:02:57]} 5. Nxf3 {[%clk 0:03:00]}  Bg4 {[%clk 0:02:56]} 6. h3 {[%clk 0:03:01]}  Bxf3 {[%clk 0:02:56]} 7. Qxf3 {[%clk 0:03:02]}  c6 {[%clk 0:02:57]} 8. Be3 {[%clk 0:03:02]}  Nbd7 {[%clk 0:02:56]} 9. Bd3 {[%clk 0:03:02]}  e6 {[%clk 0:02:56]} 10. O-O {[%clk 0:03:02]}  Be7 {[%clk 0:02:54]} 11. Rf2 {[%clk 0:03:02]}  O-O {[%clk 0:02:54]} 12. Raf1 {[%clk 0:03:02]}  Nd5 {[%clk 0:02:53]} 13. Nxd5 {[%clk 0:02:50]}  cxd5 {[%clk 0:02:51]} 14. Qh5 {[%clk 0:02:49]}  g6 {[%clk 0:02:50]} 15. Qh6 {[%clk 0:02:42]}  Nf6 {[%clk 0:02:19]} 16. Bf4 {[%clk 0:02:07]}  Nh5 {[%clk 0:02:05]} 17. Bd2 {[%clk 0:01:34]}  Rc8 {[%clk 0:01:47]} 18. Rxf7 {[%clk 0:01:06]}  Rxf7 {[%clk 0:01:42]} 19. Rxf7 {[%clk 0:01:05]}  Kxf7 {[%clk 0:01:43]} 20. Qxh7+ {[%clk 0:01:06]}  Ke8 {[%clk 0:01:40]} 21. Bb5+ {[%clk 0:00:57]}  Rc6 {[%clk 0:01:35]} 22. Qxg6+ {[%clk 0:00:57]}  Kd7 {[%clk 0:01:34]} 23. Qxh5 {[%clk 0:00:53]}  Qb6 {[%clk 0:01:34]} 24. Bxc6+ {[%clk 0:00:52]}  bxc6 {[%clk 0:01:35]} 25. Bc3 {[%clk 0:00:51]}  Qa6 {[%clk 0:01:28]} 26. a3 {[%clk 0:00:45]}  Qc4 {[%clk 0:01:27]} 27. Qd1 {[%clk 0:00:38]}  Bxa3 {[%clk 0:01:24]} 28. Qd3 {[%clk 0:00:35]}  Qxd3 {[%clk 0:01:19]} 29. cxd3 {[%clk 0:00:36]}  Be7 {[%clk 0:01:15]} 30. Kf2 {[%clk 0:00:29]}  Ke8 {[%clk 0:01:02]} 31. Kf3 {[%clk 0:00:29]}  Kf7 {[%clk 0:01:02]} 32. g3 {[%clk 0:00:30]}  Kg6 {[%clk 0:01:02]} 33. h4 {[%clk 0:00:30]}  Kh5 {[%clk 0:01:02]} 34. Be1 {[%clk 0:00:26]}  Bf6 {[%clk 0:01:02]} 35. g4+ {[%clk 0:00:25]}  Kg6 {[%clk 0:01:03]} 36. Bf2 {[%clk 0:00:25]}  a5 {[%clk 0:01:03]} 37. b3 {[%clk 0:00:25]}  Bd8 {[%clk 0:00:56]} 38. h5+ {[%clk 0:00:23]}  Kg5 {[%clk 0:00:55]} 39. Be3+ {[%clk 0:00:23]}  Kh4 {[%clk 0:00:54]} 40. h6 {[%clk 0:00:22]}  Bf6 {[%clk 0:00:53]} 41. g5 {[%clk 0:00:21]} 1-0


[Site "https://www.chess.com"]

[Event "Titled Tuesday Blitz June 28 Early 2022"]
[White "Timofeev, Artyom"]
[Black "Sevian, Samuel"]
[WhiteFideId "4140419"]
[BlackFideId "2040506"]
[WhiteElo "2578"]
[BlackElo "2692"]
[Result "1-0"]
[Round "11"]
[TimeControl "180+1"]
[Date "2022.06.28"]
[WhiteClock "0:00:07"]
[BlackClock "0:00:45"]

1. e4 {[%clk 0:03:00]}  Nf6 {[%clk 0:02:58]} 2. Nc3 {[%clk 0:02:59]}  e5 {[%clk 0:02:57]} 3. Bc4 {[%clk 0:02:57]}  Bb4 {[%clk 0:02:57]} 4. Nge2 {[%clk 0:02:56]}  O-O {[%clk 0:02:57]} 5. O-O {[%clk 0:02:55]}  Nc6 {[%clk 0:02:56]} 6. d3 {[%clk 0:02:54]}  d6 {[%clk 0:02:55]} 7. a3 {[%clk 0:02:51]}  Bc5 {[%clk 0:02:54]} 8. h3 {[%clk 0:02:46]}  Be6 {[%clk 0:02:54]} 9. Bxe6 {[%clk 0:02:34]}  fxe6 {[%clk 0:02:55]} 10. Na4 {[%clk 0:02:34]}  Bb6 {[%clk 0:02:53]} 11. Nxb6 {[%clk 0:02:31]}  axb6 {[%clk 0:02:54]} 12. c4 {[%clk 0:02:31]}  Qe8 {[%clk 0:02:51]} 13. Be3 {[%clk 0:02:28]}  Nh5 {[%clk 0:02:48]} 14. Kh2 {[%clk 0:02:19]}  Qg6 {[%clk 0:02:42]} 15. Qd2 {[%clk 0:02:12]}  Na5 {[%clk 0:02:36]} 16. Nc1 {[%clk 0:01:56]}  Rf7 {[%clk 0:02:34]} 17. b4 {[%clk 0:01:55]}  Nc6 {[%clk 0:02:34]} 18. Ne2 {[%clk 0:01:54]}  Raf8 {[%clk 0:02:35]} 19. b5 {[%clk 0:01:46]}  Na5 {[%clk 0:02:34]} 20. Rab1 {[%clk 0:01:45]}  h6 {[%clk 0:02:22]} 21. f3 {[%clk 0:01:42]}  Nf4 {[%clk 0:02:20]} 22. Nxf4 {[%clk 0:01:39]}  exf4 {[%clk 0:02:21]} 23. Bf2 {[%clk 0:01:40]}  e5 {[%clk 0:02:21]} 24. Qc3 {[%clk 0:01:36]}  Kh7 {[%clk 0:02:20]} 25. Kg1 {[%clk 0:01:30]}  Qg5 {[%clk 0:02:20]} 26. Rfd1 {[%clk 0:01:28]}  Rf6 {[%clk 0:02:20]} 27. Rd2 {[%clk 0:01:23]}  Rg6 {[%clk 0:02:20]} 28. Be1 {[%clk 0:01:23]}  Qh5 {[%clk 0:02:20]} 29. Kf1 {[%clk 0:01:22]}  c5 {[%clk 0:02:17]} 30. Rf2 {[%clk 0:01:18]}  Rg3 {[%clk 0:02:12]} 31. Rc2 {[%clk 0:01:07]}  Rg5 {[%clk 0:02:11]} 32. Rbb2 {[%clk 0:01:05]}  Rf6 {[%clk 0:02:11]} 33. Qd2 {[%clk 0:00:53]}  Rfg6 {[%clk 0:02:04]} 34. Qd1 {[%clk 0:00:53]}  Rg3 {[%clk 0:01:59]} 35. Bxg3 {[%clk 0:00:52]}  fxg3 {[%clk 0:01:59]} 36. Re2 {[%clk 0:00:50]}  Rf6 {[%clk 0:01:59]} 37. Ke1 {[%clk 0:00:49]}  Qg5 {[%clk 0:01:58]} 38. Qd2 {[%clk 0:00:48]}  Rf4 {[%clk 0:01:59]} 39. Qe3 {[%clk 0:00:47]}  Kg6 {[%clk 0:01:59]} 40. Kd2 {[%clk 0:00:47]}  Kh5 {[%clk 0:01:59]} 41. Kc2 {[%clk 0:00:46]}  Kh4 {[%clk 0:01:59]} 42. Rb1 {[%clk 0:00:46]}  Qd8 {[%clk 0:01:53]} 43. Qd2 {[%clk 0:00:41]}  h5 {[%clk 0:01:52]} 44. Rh1 {[%clk 0:00:40]}  Qa8 {[%clk 0:01:51]} 45. Qc3 {[%clk 0:00:40]}  g6 {[%clk 0:01:50]} 46. Kb2 {[%clk 0:00:39]}  Qb8 {[%clk 0:01:46]} 47. Qc2 {[%clk 0:00:39]}  Qc7 {[%clk 0:01:45]} 48. Qc3 {[%clk 0:00:39]}  Qf7 {[%clk 0:01:45]} 49. Qc2 {[%clk 0:00:39]}  Kg5 {[%clk 0:01:43]} 50. Qc3 {[%clk 0:00:39]}  Rh4 {[%clk 0:01:36]} 51. Qc1+ {[%clk 0:00:39]}  Qf4 {[%clk 0:01:36]} 52. Qc3 {[%clk 0:00:37]}  Kf6 {[%clk 0:01:36]} 53. Qd2 {[%clk 0:00:34]}  g5 {[%clk 0:01:36]} 54. Qe1 {[%clk 0:00:32]}  Ke7 {[%clk 0:01:33]} 55. Rf1 {[%clk 0:00:32]}  Kd8 {[%clk 0:01:33]} 56. Qd2 {[%clk 0:00:29]}  Qf7 {[%clk 0:01:31]} 57. Qxg5+ {[%clk 0:00:27]}  Qe7 {[%clk 0:01:31]} 58. Qxg3 {[%clk 0:00:27]}  Rf4 {[%clk 0:01:31]} 59. Qe1 {[%clk 0:00:27]}  h4 {[%clk 0:01:30]} 60. g3 {[%clk 0:00:26]}  hxg3 {[%clk 0:01:28]} 61. Qxg3 {[%clk 0:00:27]}  Kc7 {[%clk 0:01:28]} 62. Rg1 {[%clk 0:00:26]}  Kb8 {[%clk 0:01:28]} 63. Rh2 {[%clk 0:00:24]}  Ka7 {[%clk 0:01:26]} 64. h4 {[%clk 0:00:24]}  Qf7 {[%clk 0:01:27]} 65. Qg7 {[%clk 0:00:21]}  Qh5 {[%clk 0:01:22]} 66. Rf2 {[%clk 0:00:11]}  Rxf3 {[%clk 0:01:16]} 67. Rxf3 {[%clk 0:00:11]}  Qxf3 {[%clk 0:01:17]} 68. Qg3 {[%clk 0:00:08]}  Qe2+ {[%clk 0:01:17]} 69. Kc3 {[%clk 0:00:07]}  Qa2 {[%clk 0:01:17]} 70. Qg2 {[%clk 0:00:05]}  Qxa3+ {[%clk 0:01:16]} 71. Kd2 {[%clk 0:00:05]}  Qb2+ {[%clk 0:01:15]} 72. Ke3 {[%clk 0:00:06]}  Qd4+ {[%clk 0:01:15]} 73. Ke2 {[%clk 0:00:06]}  Nb3 {[%clk 0:01:15]} 74. Qf2 {[%clk 0:00:06]}  Qc3 {[%clk 0:01:15]} 75. Kf3 {[%clk 0:00:05]}  Qxd3+ {[%clk 0:01:14]} 76. Qe3 {[%clk 0:00:06]}  Nd2+ {[%clk 0:01:13]} 77. Kf2 {[%clk 0:00:05]}  Nxe4+ {[%clk 0:01:13]} 78. Kf3 {[%clk 0:00:06]}  Nd2+ {[%clk 0:01:14]} 79. Kf2 {[%clk 0:00:06]}  Qf5+ {[%clk 0:01:13]} 80. Ke2 {[%clk 0:00:06]}  Nxc4 {[%clk 0:01:14]} 81. Qd3 {[%clk 0:00:07]}  Qf4 {[%clk 0:01:11]} 82. Ra1+ {[%clk 0:00:06]}  Kb8 {[%clk 0:01:10]} 83. Qh7 {[%clk 0:00:06]}  Qe3+ {[%clk 0:01:00]} 84. Kf1 {[%clk 0:00:06]}  Nd2+ {[%clk 0:00:57]} 85. Kg2 {[%clk 0:00:05]}  Qe2+ {[%clk 0:00:57]} 86. Kh3 {[%clk 0:00:04]}  Qf3+ {[%clk 0:00:57]} 87. Kh2 {[%clk 0:00:04]}  Qf8 {[%clk 0:00:58]} 88. Qd7 {[%clk 0:00:03]}  Ne4 {[%clk 0:00:54]} 89. Rg1 {[%clk 0:00:01]}  Qf2+ {[%clk 0:00:53]} 90. Rg2 {[%clk 0:00:01]}  Qxh4+ {[%clk 0:00:54]} 91. Kg1 {[%clk 0:00:02]}  Qh8 {[%clk 0:00:45]} 92. Qf7 {[%clk 0:00:01]}  Qc8 {[%clk 0:00:45]} 93. Rg8 {[%clk 0:00:01]}  Nc3 {[%clk 0:00:45]} 94. Rxc8+ {[%clk 0:00:01]}  Kxc8 {[%clk 0:00:46]} 95. Qe8+ {[%clk 0:00:02]}  Kc7 {[%clk 0:00:47]} 96. Qf7+ {[%clk 0:00:02]}  Kd8 {[%clk 0:00:47]} 97. Qc4 {[%clk 0:00:03]}  Nb1 {[%clk 0:00:43]} 98. Qd3 {[%clk 0:00:03]}  Ke7 {[%clk 0:00:42]} 99. Qxb1 {[%clk 0:00:03]}  Ke6 {[%clk 0:00:42]} 100. Kf2 {[%clk 0:00:03]}  d5 {[%clk 0:00:43]} 101. Ke2 {[%clk 0:00:04]}  c4 {[%clk 0:00:44]} 102. Qg6+ {[%clk 0:00:04]}  Ke7 {[%clk 0:00:44]} 103. Qxb6 {[%clk 0:00:05]}  d4 {[%clk 0:00:44]} 104. Qxb7+ {[%clk 0:00:06]}  Ke6 {[%clk 0:00:44]} 105. Qc6+ {[%clk 0:00:06]}  Kf5 {[%clk 0:00:45]} 106. Qxc4 {[%clk 0:00:07]} 1-0


[Site "https://www.chess.com"]

[Event "Titled Tuesday Blitz June 28 Early 2022"]
[White "Torres Cueto, Jesus Marcial"]
[Black "Ouellet, Maili-Jade"]
[WhiteFideId "4415280"]
[BlackFideId "2620472"]
[WhiteElo "2055"]
[BlackElo "1899"]
[Result "0-1"]
[Round "11"]
[TimeControl "180+1"]
[Date "2022.06.28"]
[WhiteClock "0:00:28"]
[BlackClock "0:00:54"]

1. d4 {[%clk 0:02:58]}  d5 {[%clk 0:02:59]} 2. c4 {[%clk 0:02:53]}  e6 {[%clk 0:02:59]} 3. Nc3 {[%clk 0:02:51]}  Nf6 {[%clk 0:02:59]} 4. Bg5 {[%clk 0:02:45]}  Be7 {[%clk 0:02:58]} 5. e3 {[%clk 0:02:32]}  O-O {[%clk 0:02:58]} 6. cxd5 {[%clk 0:02:30]}  exd5 {[%clk 0:02:57]} 7. Bd3 {[%clk 0:02:30]}  c6 {[%clk 0:02:57]} 8. Nge2 {[%clk 0:02:29]}  Nbd7 {[%clk 0:02:58]} 9. O-O {[%clk 0:02:29]}  Re8 {[%clk 0:02:58]} 10. h3 {[%clk 0:02:29]}  Nf8 {[%clk 0:02:59]} 11. Bh4 {[%clk 0:02:29]}  Ne4 {[%clk 0:02:54]} 12. Bxe7 {[%clk 0:02:28]}  Qxe7 {[%clk 0:02:54]} 13. Bxe4 {[%clk 0:02:22]}  dxe4 {[%clk 0:02:53]} 14. Ng3 {[%clk 0:02:22]}  f5 {[%clk 0:02:51]} 15. a3 {[%clk 0:02:21]}  Ng6 {[%clk 0:02:50]} 16. b4 {[%clk 0:02:20]}  Qg5 {[%clk 0:02:43]} 17. b5 {[%clk 0:02:13]}  Be6 {[%clk 0:02:36]} 18. bxc6 {[%clk 0:02:12]}  bxc6 {[%clk 0:02:37]} 19. Rb1 {[%clk 0:02:13]}  Re7 {[%clk 0:02:33]} 20. Na4 {[%clk 0:02:09]}  Bd5 {[%clk 0:02:32]} 21. Nc5 {[%clk 0:02:06]}  f4 {[%clk 0:02:30]} 22. exf4 {[%clk 0:02:00]}  Nxf4 {[%clk 0:02:31]} 23. Kh2 {[%clk 0:01:59]}  h5 {[%clk 0:02:29]} 24. Rg1 {[%clk 0:01:47]}  h4 {[%clk 0:02:16]} 25. Ne2 {[%clk 0:01:46]}  Rf8 {[%clk 0:02:16]} 26. g3 {[%clk 0:01:27]}  Nh5 {[%clk 0:01:46]} 27. f4 {[%clk 0:01:10]}  Qh6 {[%clk 0:01:21]} 28. f5 {[%clk 0:00:33]}  Rxf5 {[%clk 0:01:04]} 29. g4 {[%clk 0:00:32]}  Qd6+ {[%clk 0:00:59]} 30. Kh1 {[%clk 0:00:30]}  e3+ {[%clk 0:00:56]} 31. Rg2 {[%clk 0:00:28]}  Rf2 {[%clk 0:00:54]} 0-1


[Site "https://www.chess.com"]